{"text_format":"1","workbook":"xlsx","n_sheets":2,"sheets":["معلومات الكادر","التقرير"],"not_rendered":{"charts":0,"images":0,"macros":1,"external_links":1,"defined_names":17,"comments":0,"pivot_tables":0},"unopened":[],"bounds":{"document_bytes":16777216,"sheet_cells":100000,"rows_first":2000,"rows_last":500,"rows_between":2000,"halvings":0,"cell_chars":16384,"cell_head_chars":4096},"cells_cut":0,"cells_raw":0,"read":"whole","date_system":"1900"}

{"sheet":"معلومات الكادر","index":0,"n_rows":33,"n_cols":43,"rows_kept":33,"cut":false,"hidden":false,"merged":[]}
[null,null,null,null,null,null,null,null,null,null,null,null,null,null,null,null,null,null,null,{"$f":"(T2-L4)/365","v":39.180821917808217}]
[null,null,null,null,null,null,null,null,null,null,null,null,null,null,null,null,null,null,null,{"$f":"TODAY()","v":"2019-11-25"}]
["ت","الاسم","الاب","الجد","اب الجد","اللقب","الاسم الكامل","العنوان الوظيفي","الشهادة الحاصل عليها","الشهاده عند التعيين","الشهاده بعد التعيين","تاريخ اول تعيين","تاريخ المباشرة بالمدرسة الحالية","دائمي ام منسب","الاختصاص الدقيق","الكلية او المعهد","الدروس التي بعهدته","سنوات الخدمة","يصلح او لا يصلح","رقم الموبايل","تاريخ الولادة","محل الولادة","اسم الام","اب الام","جد الام","اسم الزوج/الزوجة","اسم اب الزوج/الزوجة","اسم جد الزوج/الزوجة","دائرة الاحوال","رقم الهوية","السجل","الصحيفة","المحافظة","الحي","محلة","زقاق","دار","اقرب نقطة دالة","رقم التموينية","الملاحظات","عمود41","عمود42","عمود43"]
[1,"أحلام","مشري","منصور","ماضي","الدبي","أحلام مشري منصور ماضي المياحي","مديرة","دبلوم","دبلوم","دبلوم","1980-09-29","1995-09-15","دائم","عام","معهد المعلمات","رياضه",{"$f":"IF(الجدول2[[#This Row],[تاريخ اول تعيين]]=\"\",\"\",(TODAY()-الجدول2[[#This Row],[تاريخ اول تعيين]])/365)","v":39.180821917808217},null,7723247526,"1961-09-29","كوت - واسط","صبريه","سلمان","غافل","حسين","علي","حسين","مدينة الصدر","196137979833",null,null,"بغداد","الطالبية",321,96,6,"حسينية الامام المهدي",307990,"الهوية بطاقة موحدة"]
[2,"منى","إسماعيل","إبراهيم","حلمي","المفرجي","منى أسماعيل ابراهيم حلمي المفرجي","معاونه","دبلوم","دبلوم","دبلوم","1984-10-13","1995-09-16","دائم","عام","معهد المعلمات","إسلامية",{"$f":"IF(الجدول2[[#This Row],[تاريخ اول تعيين]]=\"\",\"\",(TODAY()-الجدول2[[#This Row],[تاريخ اول تعيين]])/365)","v":35.139726027397259},null,7715416029,"1961-05-30","بغداد","فوزية","خضير","عباس","عماد","خليل","محمد","الكاظمية","00385294",841,168036,"بغداد","الطاليبة",321,19,4,"مسبح الصفا",331534,""]
[3,"كرار","خالد","إبراهيم","جاسم","الاسدي","كرار خالد ابراهيم جاسم الاسدي","معاون","دبلوم","دبلوم","دبلوم","2012-12-18","2018-04-23","دائم","إنكليزي","معهد المعلمين","إنكليزي",{"$f":"IF(الجدول2[[#This Row],[تاريخ اول تعيين]]=\"\",\"\",(TODAY()-الجدول2[[#This Row],[تاريخ اول تعيين]])/365)","v":6.9397260273972599},null,7734288951,"1990-03-31","بغداد","خلود","عزيز","عبد الله","نور الهدى","جواد","كاظم","مدينة الصدر","199042318569",null,null,"بغداد","الصدر",534,13,14,"اعدادية المصطفى",317965,"الهوية بطاقة موحدة"]
[5,"خمائل","حميد","سعيد","سوادي","الساعدي","خمائل حميد سعيد سوادي الساعدي","معلمة","اعدادية","اعدادية","اعدادية","1998-10-18","2001-09-10","دائم","عربي","اعدادية / دورة تربوية ","عربي – رياضيات - رياضه",{"$f":"IF(الجدول2[[#This Row],[تاريخ اول تعيين]]=\"\",\"\",(TODAY()-الجدول2[[#This Row],[تاريخ اول تعيين]])/365)","v":21.117808219178084},"تصلح",7706022363,"1976-07-09","ميسان","كميلة","عبد النبي","بلاك","حازم","موات","محمد","مدينة الصدر","00925444",594,136,"بغداد","الصدر",530,31,53,"مستشفى ابن البلدي",1651117,""]
[6,"هناء","هميم","مهدي","رحم","الساعدي","هناء هميم مهدي رحم الساعدي","معلمة","دبلوم","دبلوم","دبلوم","2008-03-10","2008-03-11","دائم","إنكليزي","معهد المعلمات","إنكليزي ",{"$f":"IF(الجدول2[[#This Row],[تاريخ اول تعيين]]=\"\",\"\",(TODAY()-الجدول2[[#This Row],[تاريخ اول تعيين]])/365)","v":11.717808219178082},"تصلح",7711024946,"1965-07-01","ميسان","زهره","حسن","رحم","سامي","عامر","كاظم","مدينة الصدر","196531859510",null,null,"بغداد","الصدر",530,1,47,"مستشفى ابن البلدي",1268002,"الهوية بطاقة موحدة"]
[7,"سراب","نوري","حسن","محمد","الخراساني","سراب نوري حسن محمد الخراساني","معلمة","دبلوم","دبلوم","دبلوم","2007-11-21","2007-11-21","دائم","عربي","معهد المعلمات","عربي ",{"$f":"IF(الجدول2[[#This Row],[تاريخ اول تعيين]]=\"\",\"\",(TODAY()-الجدول2[[#This Row],[تاريخ اول تعيين]])/365)","v":12.019178082191781},"تصلح",7702696698,"1971-07-01","بغداد","فوزية","عريبي","محمد","صفاء","عبود","عريبي","الرصافه","00484459",2810,63,"بغداد","الصدر",530,25,9,"مستشفى ابن البلدي",945720,""]
[8,"اسراء","عازم","حميد","رخت","المعموري","اسراء عازم حميد رخت المعموري","معلمة","دبلوم","دبلوم","دبلوم","2006-11-01","2017-09-27","دائم","رياضيات / علوم","معهد المعلمات","علوم ",{"$f":"IF(الجدول2[[#This Row],[تاريخ اول تعيين]]=\"\",\"\",(TODAY()-الجدول2[[#This Row],[تاريخ اول تعيين]])/365)","v":13.073972602739726},"تصلح",7702917544,"1981-05-09","بغداد","سهيلة","حسين","رويعي","علي","لفته","نعيم","الصدر","198115926370",null,null,"بغداد","حي اور",341,37,51,"جامع الفردوس",1904156,"الهوية بطاقة موحدة"]
[9,"علياء","بشير","حسن","علي","الجنابي","علياء بشير حسن علي الجنابي","معلمة","دبلوم",null,null,null,null,null,"فنية","معهد الفنون الجميلة","فنية - علوم",{"$f":"IF(الجدول2[[#This Row],[تاريخ اول تعيين]]=\"\",\"\",(TODAY()-الجدول2[[#This Row],[تاريخ اول تعيين]])/365)","v":""},"تصلح",7700729070,"1976-01-20","بغداد","فيحاء","رشيد","ناصر","عقيل","جاسم","صحن","الكوت","0065793",15,2946,"بغداد","جميلة",518,17,58,"بدالة 14 تموز",1225255,""]
[10,"منى","كاظم","بهار","صافي","الربيعي","منى كاظم بهار صافي الربيعي","معلمة",null,null,null,null,null,null,null,null,null,{"$f":"IF(الجدول2[[#This Row],[تاريخ اول تعيين]]=\"\",\"\",(TODAY()-الجدول2[[#This Row],[تاريخ اول تعيين]])/365)","v":""},null,null,"1973-03-01","بغداد","حفيظة","حمدي","لافي","محمد","حسن","عبد الله","مدينة الصدر","0055395",2566,126,"بغداد","جميلة",518,19,26,"بدالة 14 تموز",1278391,"إجازة 4 سنوات"]
[11,"نغم","كاظم","طاهر","جندال","العيساوي","نغم  كاظم  طاهر جندال العيساوي","معلمة",null,null,null,null,null,null,null,null,null,{"$f":"IF(الجدول2[[#This Row],[تاريخ اول تعيين]]=\"\",\"\",(TODAY()-الجدول2[[#This Row],[تاريخ اول تعيين]])/365)","v":""},null,null,"1979-06-04","بغداد","كلثوم","لازم","جندال","/","/","/","مدينة الصدر","00214971",3858,96,"بغداد","المستنصرية",506,47,5,"الجامعة المستنصرية",316660,"إجازة 4 سنوات"]
[12,"ديانا","يوسف","علي","حسن","القره لوسي","ديانا يوسف علي حسن القرة لوسي","معلمة","دبلوم",null,null,null,null,null,"انكليزي","معهد المعلمات","إنكليزي - رياضه",{"$f":"IF(الجدول2[[#This Row],[تاريخ اول تعيين]]=\"\",\"\",(TODAY()-الجدول2[[#This Row],[تاريخ اول تعيين]])/365)","v":""},"تصلح",7727787716,"1995-02-11","بغداد","سهيلة","حيدر","علي ياور","سيروان","ياور","درويش","مندلي","199523179605",null,null,"بغداد","جميلة",516,51,7,"مطعم الركن الأبيض",323702,""]
[13,"هناء","إبراهيم","سلمان","خلف","السوداني","هناء ابراهيم سلمان خلف السوداني","معلمة","بكالوريوس","بكالوريوس","بكالوريوس","2005-10-29","2012-11-20","دائم","جغرافية","كلية التربية","اجتماعيات  – علوم - رياضه",{"$f":"IF(الجدول2[[#This Row],[تاريخ اول تعيين]]=\"\",\"\",(TODAY()-الجدول2[[#This Row],[تاريخ اول تعيين]])/365)","v":14.082191780821917},"تصلح",7711872088,"1980-05-30","بغداد","نعيمة","جبر","عباس","احمد","مزبان","غضبان","مدينة الصدر","198078354829",null,null,"بغداد","الصدر",526,35,23,"مركز شرطة الكرامة",2050516,""]
[14,"سهاد","عبد علي","حسن","غلطة","الغراوي","سهاد عبد علي حسن غلطة الغراوي","معلمة","اعدادية","اعدادية","اعدادية","1999-11-09","2006-09-28","دائم","عام","اعدادية / دورة تربوية ","عربي – رياضيات – اسلامية - رياضه",{"$f":"IF(الجدول2[[#This Row],[تاريخ اول تعيين]]=\"\",\"\",(TODAY()-الجدول2[[#This Row],[تاريخ اول تعيين]])/365)","v":20.057534246575344},"تصلح",7715276152,"1979-09-02","بغداد","جاسبية","مولا","دويش","احمد","فاخر","شغاتي","الصدر","00270426",3970,148,"بغداد","جميلة",524,22,3098,"متوسطة فاطمة الزهراء",1697846,""]
[15,"نور","عبد الكريم","شغاتي","غلطة","الغراوي","نور عبد الكريم شغاتي غلطة الغراوي","معلمة","دبلوم","دبلوم","دبلوم","2006-11-21","2007-01-14","دائم","علوم","معهد المعلمات","علوم ",{"$f":"IF(الجدول2[[#This Row],[تاريخ اول تعيين]]=\"\",\"\",(TODAY()-الجدول2[[#This Row],[تاريخ اول تعيين]])/365)","v":13.019178082191781},"تصلح",7707862550,"1981-11-17","بغداد","حياة","حسن","غلطة","مظفر","عبد الرحيم","شغاتي","الصدر","198184762980",null,null,"بغداد","جميلة",524,26,8,"متوسطة فاطمة الزهراء",1443217,"الهوية بطاقة موحدة"]
[16,"غفران","راضي","نجم","يوسف","العيدان","غفران راضي نجم يوسف العيدان","معلمة","دبلوم","دبلوم","دبلوم","2008-11-05","2010-09-30","دائم","فنية","معهد الفنون الجميلة","فنية ",{"$f":"IF(الجدول2[[#This Row],[تاريخ اول تعيين]]=\"\",\"\",(TODAY()-الجدول2[[#This Row],[تاريخ اول تعيين]])/365)","v":11.06027397260274},"تصلح",7706076756,"1986-01-20","بصرة","فخرية","علي","عنبر","مهند","زامل","عبد الكريم","الصدر","00925389",4048,69,"بغداد","الصدر",530,27,27,"مستشفى ابن البلدي",1901279,""]
[17,"هناء","غازي","عودة","راشد","الساعدي","هناء غازي عودة راشد السعدي","معلمة","اعدادية","اعدادية","اعدادية","1997-03-03","1997-03-04","دائم","رياضيات","اعدادية / دورة تربوية ","رياضيات  ",{"$f":"IF(الجدول2[[#This Row],[تاريخ اول تعيين]]=\"\",\"\",(TODAY()-الجدول2[[#This Row],[تاريخ اول تعيين]])/365)","v":22.745205479452054},"تصلح",7706306579,"1972-08-06","بصرة","كريمة","حسن","غلطة","وميض","صباح","حسن","الصدر","197262993154",null,null,"بغداد","الصدر",524,28,3070,"مستشفى ابن البلدي",502540,""]
[18,"زينة","علي","حامد","مطلك","الفريجي","زينة علي حامد مطلك الفريجي","معلمة","دبلوم","دبلوم","دبلوم","2001-12-01","2002-10-19","دائم","رياضيات / علوم","معهد المعلمات","رياضيات ",{"$f":"IF(الجدول2[[#This Row],[تاريخ اول تعيين]]=\"\",\"\",(TODAY()-الجدول2[[#This Row],[تاريخ اول تعيين]])/365)","v":17.994520547945207},"تصلح",7718505999,"1980-06-02","بغداد","جليلة","موسى","جويعد","حيدر","صادق","ناصر","الصدر","197895355575",null,null,"بغداد","الطالبية",323,17,5,"الشقق السكنية",1205271,""]
[19,"رشا","شفات","مطشر","بادي","السراي","رشا جفات مطشر بادي السراي","معلمة","دبلوم","دبلوم","دبلوم","2006-11-02","2016-03-10","دائم","عربي","معهد المعلمات","عربي – رياضيات –  رياضه - إسلامية ",{"$f":"IF(الجدول2[[#This Row],[تاريخ اول تعيين]]=\"\",\"\",(TODAY()-الجدول2[[#This Row],[تاريخ اول تعيين]])/365)","v":13.07123287671233},"تصلح",7706919336,"1984-02-29","بغداد","هاشمية","سلمان","سعدون","/","/","/","الصدر","00254951",3422,6,"بغداد","الصدر",530,1,59,"مستشفى ابن البلدي",2090899,""]
[20,"عواطف","محسن","حسين","حافظ","الماجدي","عواطف محسن حسين حافظ الماجدي","معلمة","بكالوريوس","بكالوريوس","بكالوريوس","2000-10-22","2017-09-26","دائم","تاريخ","كلية التربية","اجتماعيات -عربي ",{"$f":"IF(الجدول2[[#This Row],[تاريخ اول تعيين]]=\"\",\"\",(TODAY()-الجدول2[[#This Row],[تاريخ اول تعيين]])/365)","v":19.104109589041094},"تصلح",7714750655,"1976-12-15","بغداد","نعيمه","عبود","موسى","/","/","/","الصدر","00045927",787,11,"بغداد","الصدر",530,51,28,"جامع القدس",315497,""]
[21,"زينب","محمد","زبون","موسى","الساعدي","زينب محمد زبون موسى الساعدي","معلمة","دبلوم","دبلوم","دبلوم","1998-02-17","2000-10-01","دائم","عربي","معهد المعلمات","عربي – رياضيات – اسلامية - رياضه",{"$f":"IF(الجدول2[[#This Row],[تاريخ اول تعيين]]=\"\",\"\",(TODAY()-الجدول2[[#This Row],[تاريخ اول تعيين]])/365)","v":21.783561643835615},"تصلح",7733600832,"1971-07-01","بغداد","زهرة","جبار","محسن","جاسم","سالم","محسن","مدينة الصدر","00948942",3236,53,"بغداد","الصدر",522,35,25,"مركز شرطة الكرامة",498498,""]
[25,"اشواق","كاظم","كوسي","حسن","معادنة","اشواق كاظم كوسي حسن معادنة","معلمة","بكالوريوس","بكالوريوس","بكالوريوس","2014-01-29","2018-11-14","دائم","اسلامية","كلية التربية","إسلامية ",{"$f":"IF(الجدول2[[#This Row],[تاريخ اول تعيين]]=\"\",\"\",(TODAY()-الجدول2[[#This Row],[تاريخ اول تعيين]])/365)","v":5.8246575342465752},"تصلح",7716988967,"1984-03-08","بغداد","غنية","عبد علي","عبد النبي","قصي","جمعة","عبد","الصدر","00332275",1225,36,"بغداد","الصدر",530,3,71,"مستشفى ابن البلدي",2251853,""]
[26,"مروة","عباس","توفيق","عباس","قادراغا","مروة عباس توفيق عباس قادراغا","معلمة","دبلوم","دبلوم","دبلوم","2012-01-03","2017-10-04","دائم","عربي","معهد المعلمات","عربي – رياضيات - رياضه",{"$f":"IF(الجدول2[[#This Row],[تاريخ اول تعيين]]=\"\",\"\",(TODAY()-الجدول2[[#This Row],[تاريخ اول تعيين]])/365)","v":7.8986301369863012},"تصلح",7702656483,"1986-10-03","بغداد","ايمان","حميد","شاكر","علي","وليد","جبار","الرصافة","00119063",1604,26,"بغداد","الصدر",530,3,106,"مستشفى ابن البلدي",1616629,""]
[22,"ماجد","عبد الأمير","ارخيص","حسين","الكعبي",null,"حارس ليلي",null,null,null,null,null,null,null,null,null,{"$f":"IF(الجدول2[[#This Row],[تاريخ اول تعيين]]=\"\",\"\",(TODAY()-الجدول2[[#This Row],[تاريخ اول تعيين]])/365)","v":""},null,null,"1965-04-01","بغداد","مليه","حميد","جبر","ازهار","أبو الهيل","جبر","الصدر","00499176",542,65,"بغداد","الصدر",530,27,1,"مستشفى ابن البلدي",243280,"حارس ليلي مدرسة المناذرة"]
[23,"رياض","بدر","مهوس","حمود","الحجامي",null,"موظف خدمة",null,null,null,null,null,null,null,null,null,{"$f":"IF(الجدول2[[#This Row],[تاريخ اول تعيين]]=\"\",\"\",(TODAY()-الجدول2[[#This Row],[تاريخ اول تعيين]])/365)","v":""},null,null,"1982-05-08","بغداد","صبرية","قاسم","حمود","بشرى","شمخي","جبر","الصدر","00679625",4101,87,"بغداد","الصدر",544,33,22,"مدرسة الامام علي",2091615,"موظف خدمة"]
[24,"فضيلة","جاسم","حسين","غالي","الشميلاوي",null,"موظفة خدمة",null,null,null,null,null,null,null,null,null,{"$f":"IF(الجدول2[[#This Row],[تاريخ اول تعيين]]=\"\",\"\",(TODAY()-الجدول2[[#This Row],[تاريخ اول تعيين]])/365)","v":""},null,null,"1965-07-01","بغداد","فطيم","نعمه","إسماعيل","خضير","بريز","حسن","الصدر","00712192",702,140328,"بغداد","الصدر",536,23,6,"سوق الحي",395549,"موظفة خدمة"]
[null,null,null,null,null,null,null,null,null,null,null,null,null,null,null,null,null,{"$f":"IF(الجدول2[[#This Row],[تاريخ اول تعيين]]=\"\",\"\",(TODAY()-الجدول2[[#This Row],[تاريخ اول تعيين]])/365)","v":""}]
[null,null,null,null,null,null,null,null,null,null,null,null,null,null,null,null,null,{"$f":"IF(الجدول2[[#This Row],[تاريخ اول تعيين]]=\"\",\"\",(TODAY()-الجدول2[[#This Row],[تاريخ اول تعيين]])/365)","v":""}]
[null,null,null,null,null,null,null,null,null,null,null,null,null,null,null,null,null,{"$f":"IF(الجدول2[[#This Row],[تاريخ اول تعيين]]=\"\",\"\",(TODAY()-الجدول2[[#This Row],[تاريخ اول تعيين]])/365)","v":""}]
[null,null,null,null,null,null,null,null,null,null,null,null,null,null,null,null,null,{"$f":"IF(الجدول2[[#This Row],[تاريخ اول تعيين]]=\"\",\"\",(TODAY()-الجدول2[[#This Row],[تاريخ اول تعيين]])/365)","v":""}]
[null,null,null,null,null,null,null,null,null,null,null,null,null,null,null,null,null,{"$f":"IF(الجدول2[[#This Row],[تاريخ اول تعيين]]=\"\",\"\",(TODAY()-الجدول2[[#This Row],[تاريخ اول تعيين]])/365)","v":""}]

{"sheet":"التقرير","index":1,"n_rows":0,"n_cols":0,"rows_kept":0,"cut":false,"hidden":false,"merged":[]}